Cogmind - Beta 13 @@@ ROGUE MODE // 2024.04.13 @ 16:46:40 Player: emory Result: Destroyed by G-47 Trooper with Particle Gun Performance ------------- Evolutions (3) 1500 Regions Visited (6) 1200 Robots Destroyed (0) 0 Value Destroyed (0) 0 Prototype IDs (0) 0 Alien Tech Used (0) 0 Bonus (855) 855 TOTAL SCORE: 3555 Bonus ------- Pacifist 834 Follower Combat Kills 21 Cogmind --------- Core Integrity 0/700 Matter 300/300 Energy 98/100 System Corruption 1% Temperature Cool (9) Movement Core (50) Location -7/Storage Parts ------- > --- POWER (7) -------- (None) > --- PROPULSION (2) --- (None) > --- UTILITY (2) ------ (None) > --- WEAPON (2) ------- (None) > --- INVENTORY (5) ---- (None) Peak State ------------ None Favorites ----------- Power None Propulsion None Utility None Weapon None Build | -11 -10 -10 -9 -8 -7 -7 ------- Run | Yrd Mat Min Mat Mat Fac Sto Slots Evolved 6 | . . . 2 2 2 . Power 6 | . . . 2 2 2 . Propulsion . | . . . . . . . Utility . | . . . . . . . Weapon . | . . . . . . . Parts Attached . | . . . . . . . Power . | . . . . . . . Engine . | . . . . . . . Core . | . . . . . . . Reactor . | . . . . . . . Propulsion . | . . . . . . . Treads . | . . . . . . . Leg . | . . . . . . . Wheel . | . . . . . . . Hover . | . . . . . . . Flight . | . . . . . . . Utility . | . . . . . . . Device . | . . . . . . . Storage . | . . . . . . . Processor . | . . . . . . . Hackware . | . . . . . . . Protection . | . . . . . . . Artifact . | . . . . . . . Weapon . | . . . . . . . Energy Gun . | . . . . . . . Energy Cannon . | . . . . . . . Ballistic Gun . | . . . . . . . Ballistic Cannon . | . . . . . . . Launcher . | . . . . . . . Special Weapon . | . . . . . . . Impact Weapon . | . . . . . . . Slashing Weapon . | . . . . . . . Piercing Weapon . | . . . . . . . Special Melee Weapon . | . . . . . . . Unidentified Prototypes . | . . . . . . . Parts Lost . | . . . . . . . Power . | . . . . . . . Propulsion . | . . . . . . . Utility . | . . . . . . . Weapon . | . . . . . . . Highest Loss Streak . | . . . . . . . To Critical Strikes . | . . . . . . . Average Slot Usage (%) . | . . . . . . . Naked Turns 605 | . 14 160 110 132 116 73 Heaviest Build . | . . . . . . . Greatest Support 3 | 3 3 3 3 3 3 3 Greatest Overweight (x) . | . . . . . . . Average Overweight (x) . | . . . . . . . Largest Inventory Capacity 5 | 5 5 5 5 5 5 5 Average Capacity 5 | 5 5 5 5 5 5 5 Most Carried . | . . . . . . . Average Carried . | . . . . . . . Final Capacity 5 | 5 5 5 5 5 5 5 Final Carried . | . . . . . . . Class Distribution -------------------- 100% | Mutant Dominant Class ---------------- Mutant | -10/Materials Mutant | -10/Mines Mutant | -9/Materials Mutant | -8/Materials Mutant | -7/Factory Mutant | -7/Storage Resources | -11 -10 -10 -9 -8 -7 -7 ----------- Run | Yrd Mat Min Mat Mat Fac Sto Matter Collected 200 | 200 . . . . . . Remotely . | . . . . . . . Salvage Created . | . . . . . . . Parts . | . . . . . . . Haulers Intercepted . | . . . . . . . Recyclers Shooed . | . . . . . . . Parts Field Recycled . | . . . . . . . Retrieved Matter . | . . . . . . . Parts Self-Destructed . | . . . . . . . Prevented . | . . . . . . . Kills | -11 -10 -10 -9 -8 -7 -7 ------- Run | Yrd Mat Min Mat Mat Fac Sto Combat Hostiles Destroyed . | . . . . . . . Classes Destroyed . | . . . . . . . Best Kill Streak . | . . . . . . . Combat Bots Only . | . . . . . . . Max Kills in Single Turn . | . . . . . . . Gunslinging . | . . . . . . . Exploded . | . . . . . . . Melee . | . . . . . . . Uniques/NPCs Destroyed . | . . . . . . . Combat | -11 -10 -10 -9 -8 -7 -7 -------- Run | Yrd Mat Min Mat Mat Fac Sto Hostile Shots Fired 250 | . . 21 30 18 42 139 Missed 132 | . . 8 15 9 24 76 Damage Taken 1270 | . . 223 198 144 158 547 Core 1270 | . . 223 198 144 158 547 Absorbed by Shields . | . . . . . . . Core Remaining (%) 58 | 100 . 10 50 73 . . Volleys Fired . | . . . . . . . Largest . | . . . . . . . Hottest . | . . . . . . . Shots Fired . | . . . . . . . Gun . | . . . . . . . Cannon . | . . . . . . . Launcher . | . . . . . . . Special . | . . . . . . . Kinetic . | . . . . . . . Thermal . | . . . . . . . Explosive . | . . . . . . . Electromagnetic . | . . . . . . . Robot Hit Streak . | . . . . . . . Robot Miss Streak . | . . . . . . . Penetration Max . | . . . . . . . Secondary Targets . | . . . . . . . Shots Hit Robots . | . . . . . . . Core Hits 3 | . . 2 1 . . . Critical Kills . | . . . . . . . Critical Parts Destroyed . | . . . . . . . Critical Strikes . | . . . . . . . Melee Attacks . | . . . . . . . Impact . | . . . . . . . Slashing . | . . . . . . . Piercing . | . . . . . . . Sneak Attacks . | . . . . . . . Combat Hostiles . | . . . . . . . Follow-up Attacks . | . . . . . . . Damage Inflicted 126 | . . 64 27 3 19 13 Guns . | . . . . . . . Cannons . | . . . . . . . Explosions . | . . . . . . . Melee . | . . . . . . . Ramming 126 | . . 64 27 3 19 13 Kinetic . | . . . . . . . Thermal . | . . . . . . . Explosive . | . . . . . . . Electromagnetic . | . . . . . . . Impact . | . . . . . . . Slashing . | . . . . . . . Piercing . | . . . . . . . Highest Corruption 4 | . . 4 . 1 1 1 Average Corruption 2 | . . 3 . 1 1 1 Corruption Purged . | . . . . . . . Corruption Blocked . | . . . . . . . Effects 2 | . . 2 . . . . Matter Fused 1 | . . 1 . . . . Alerts 1 | . . 1 . . . . Overload Shots . | . . . . . . . Overflow Damage . | . . . . . . . Projectiles . | . . . . . . . Explosions . | . . . . . . . Melee . | . . . . . . . Knockbacks 1 | . . 1 . . . . Impact 1 | . . 1 . . . . Kinetic . | . . . . . . . Secondary . | . . . . . . . Self-Inflicted Damage 57 | . . 29 13 1 8 6 Shots . | . . . . . . . Rammed 32 | . . 17 4 1 7 3 Targets Rammed 32 | . . 17 4 1 7 3 Kicked . | . . . . . . . Crushed . | . . . . . . . Highest Temperature . | . . . . . . . Average Temperature . | . . . . . . . Received Heat Transfer 522 | . . 126 51 99 42 204 Siege Activations . | . . . . . . . Robots Corrupted . | . . . . . . . Combat Hostiles . | . . . . . . . Parts Fried . | . . . . . . . Impact Corruptions . | . . . . . . . Robots Melted . | . . . . . . . Combat Hostiles . | . . . . . . . Parts Melted . | . . . . . . . Heat Transferred . | . . . . . . . Parts Sabotaged . | . . . . . . . Parts Stolen . | . . . . . . . Parts Stripped . | . . . . . . . Power Chain Reactions . | . . . . . . . Alert | -11 -10 -10 -9 -8 -7 -7 ------- Run | Yrd Mat Min Mat Mat Fac Sto Peak Influence 232 | . 15 136 232 142 79 140 Initial 97 | . . 5 52 97 64 35 Average 84 | . 10 45 124 120 72 91 Maximum Alert Level 1 | . . . 1 . . . Low Security (%) 96 | 100 100 100 79 100 100 100 Level 1 3 | . . . 20 . . . Level 2 . | . . . . . . . Level 3 . | . . . . . . . Level 4 . | . . . . . . . Level 5 . | . . . . . . . High Security . | . . . . . . . Max Security . | . . . . . . . Squads Dispatched 4 | . 1 . 2 . . 1 Investigation . | . . . . . . . Extermination . | . . . . . . . Reinforcement 4 | . 1 . 2 . . 1 Assault . | . . . . . . . Garrison . | . . . . . . . Intercept . | . . . . . . . Searches Triggered . | . . . . . . . Construction Impeded . | . . . . . . . Haulers Reinforced . | . . . . . . . Active Scanning Responses . | . . . . . . . Cargo Convoy Interrupts . | . . . . . . . Stealth | -11 -10 -10 -9 -8 -7 -7 --------- Run | Yrd Mat Min Mat Mat Fac Sto Distress Signals 5 | . . . 1 2 . 2 Communications Jammed . | . . . . . . . Distress Signals . | . . . . . . . Times Spotted 46 | . 1 7 18 10 1 9 Peak Tracking Total 12 | . 1 3 12 10 1 9 Tactical Retreats 5 | . . 1 3 1 . . Traps | -11 -10 -10 -9 -8 -7 -7 ------- Run | Yrd Mat Min Mat Mat Fac Sto Traps Triggered 1 | . . . . 1 . . Indirectly . | . . . . . . . Trap Hack Attempts . | . . . . . . . Triggered . | . . . . . . . Disarmed . | . . . . . . . Reprogrammed . | . . . . . . . Reused . | . . . . . . . Traps Extracted . | . . . . . . . Installed . | . . . . . . . Triggered . | . . . . . . . Machines | -11 -10 -10 -9 -8 -7 -7 ---------- Run | Yrd Mat Min Mat Mat Fac Sto Machines Disabled . | . . . . . . . Max in Single Turn . | . . . . . . . Machines Repaired . | . . . . . . . Machines Dismantled . | . . . . . . . Machines Sabotaged . | . . . . . . . Overloaded Fab Kills . | . . . . . . . Hacking | -11 -10 -10 -9 -8 -7 -7 --------- Run | Yrd Mat Min Mat Mat Fac Sto Machines Accessed 1 | . . . . . . 1 Terminals 1 | . . . . . . 1 Fabricators . | . . . . . . . Repair Stations . | . . . . . . . Recycling Units . | . . . . . . . Scanalyzers . | . . . . . . . Garrison Access . | . . . . . . . Total Hacks 1 | . . . . . . 1 Successful 1 | . . . . . . 1 Failed . | . . . . . . . Catastrophic . | . . . . . . . Database Lockouts . | . . . . . . . Manual . | . . . . . . . Terminals 1 | . . . . . . 1 Fabricators . | . . . . . . . Repair Stations . | . . . . . . . Recycling Units . | . . . . . . . Scanalyzers . | . . . . . . . Garrison Access . | . . . . . . . Terminal Hacks 1 | . . . . . . 1 Open Door 1 | . . . . . . 1 Fabricator Hacks . | . . . . . . . Repair Station Hacks . | . . . . . . . Recycling Unit Hacks . | . . . . . . . Scanalyzer . | . . . . . . . Garrison Access Hacks . | . . . . . . . Unauthorized Hacks . | . . . . . . . Terminals . | . . . . . . . Fabricators . | . . . . . . . Repair Stations . | . . . . . . . Recycling Units . | . . . . . . . Scanalyzers . | . . . . . . . Garrison Access . | . . . . . . . Data Cores Recovered . | . . . . . . . Used . | . . . . . . . Hacking Detections . | . . . . . . . Full Trace Events . | . . . . . . . Feedback Events . | . . . . . . . Feedback Blocked . | . . . . . . . Robot Schematics Acquired . | . . . . . . . Robots Built . | . . . . . . . Authchips . | . . . . . . . Time . | . . . . . . . Total Robot Build Rating . | . . . . . . . Part Schematics Acquired . | . . . . . . . Parts Built . | . . . . . . . Authchips . | . . . . . . . Time . | . . . . . . . Total Part Build Rating . | . . . . . . . Parts Repaired . | . . . . . . . Time . | . . . . . . . Parts Recycled . | . . . . . . . Recycled Matter . | . . . . . . . Retrieved Matter . | . . . . . . . Retrieved Components . | . . . . . . . Parts Scanalyzed . | . . . . . . . Part Schematics Acquired . | . . . . . . . Parts Damaged . | . . . . . . . Bothacking | -11 -10 -10 -9 -8 -7 -7 ------------ Run | Yrd Mat Min Mat Mat Fac Sto Used RIF Installer . | . . . . . . . Robots Hacked . | . . . . . . . Non-combat . | . . . . . . . Combat . | . . . . . . . Robot Hacks Applied . | . . . . . . . Relay Couplers Released . | . . . . . . . Fabnet Peak Effective % . | . . . . . . . Robots Rewired . | . . . . . . . Allies Hacked . | . . . . . . . Hacks Repelled . | . . . . . . . Allies | -11 -10 -10 -9 -8 -7 -7 -------- Run | Yrd Mat Min Mat Mat Fac Sto Total Allies 4 | . . 4 . . . . Largest Group 4 | . . 4 . . . . Highest-Rated Group 71 | . . 71 . . . . Highest-Rated Ally 31 | . . 31 . . . . Total Orders . | . . . . . . . Ally Attacks 11 | . . 11 . . . . Total Damage 140 | . . 140 . . . . Kills 4 | . . 4 . . . . Allies Corrupted . | . . . . . . . Allies Melted . | . . . . . . . Intel | -11 -10 -10 -9 -8 -7 -7 ------- Run | Yrd Mat Min Mat Mat Fac Sto Robot Analysis Total . | . . . . . . . Derelict Logs Recovered 1 | . . 1 . . . . Drone Launches . | . . . . . . . Drone Recoveries . | . . . . . . . Exploration | -11 -10 -10 -9 -8 -7 -7 ------------- Run | Yrd Mat Min Mat Mat Fac Sto Turns Passed 620 | 15 14 160 110 132 116 73 Spaces Moved 1173 | 31 27 286 211 262 218 138 Core 1173 | 31 27 286 211 262 218 138 Treads . | . . . . . . . Legs . | . . . . . . . Wheels . | . . . . . . . Hover . | . . . . . . . Flight . | . . . . . . . Fastest Speed 50 | 50 50 50 50 50 50 50 Average Speed 50 | 50 50 50 50 50 50 50 Slowest Speed 50 | 50 50 50 50 50 50 50 Overloaded Moves . | . . . . . . . Propulsion Burnouts . | . . . . . . . Robots Hopped . | . . . . . . . Cave-ins Triggered . | . . . . . . . Exploration Rate (%) 28 | 3 15 65 38 33 9 39 Regions Visited 6 Branch Regions 2 Pre-discovered Areas 1 | . . . . . . 1 Known Exits Taken . | . . . . . . . Unknown Exits Taken 6 | 1 1 1 1 1 1 . Scrap Searched 1 | . . 1 . . . . Spaces Dug . | . . . . . . . Terrain Destroyed . | . . . . . . . Melee . | . . . . . . . Projectile . | . . . . . . . AOE . | . . . . . . . Terrain Rammed . | . . . . . . . Walls Destroyed . | . . . . . . . Machines Disabled . | . . . . . . . Actions | -11 -10 -10 -9 -8 -7 -7 --------- Run | Yrd Mat Min Mat Mat Fac Sto Total 1200 | 30 26 302 214 262 224 142 Wait 1 | . . . . . . 1 Move 1167 | 30 26 285 210 261 217 138 Hop . | . . . . . . . Pick Up . | . . . . . . . Fast Attach . | . . . . . . . Attach . | . . . . . . . Detach . | . . . . . . . Swap . | . . . . . . . Drop . | . . . . . . . Fire . | . . . . . . . Melee . | . . . . . . . Ram 32 | . . 17 4 1 7 3 Kick . | . . . . . . . Crush . | . . . . . . . Escape Stasis . | . . . . . . . Rewire . | . . . . . . . Trap . | . . . . . . . Miscellaneous . | . . . . . . . Route ------- -11/Scrapyard -10/Materials -10/Mines -9/Materials -8/Materials -7/Factory -7/Storage History --------- Turn | Location | Event 6 | -11/Scrapyard | Discovered new exit (range 15) 16 | -11/Scrapyard | Entered Materials 23 | -10/Materials | Discovered new exit (range 13) 30 | -10/Materials | Entered Mines 59 | -10/Mines | Core integrity fell below 50% 80 | -10/Mines | Assisted by bots powering up and referring to "LRC-V3" 86 | -10/Mines | Met a Derelict bent on vengeance 125 | -10/Mines | Received a Mining Laser from a helpful Derelict 145 | -10/Mines | Learned Materials stockpile data 186 | -10/Mines | Discovered new exit (range 6) 190 | -10/Mines | Core integrity fell below 20% 190 | -10/Mines | Entered Materials 190 | -9/Materials | Evolved 2 slots: Power x2 295 | -9/Materials | Discovered new exit (range 11) 300 | -9/Materials | Entered another Materials area 300 | -8/Materials | Evolved 2 slots: Power x2 305 | -8/Materials | Build established: Mutant 430 | -8/Materials | Discovered new exit (range 7) 432 | -8/Materials | Entered Factory 432 | -7/Factory | Evolved 2 slots: Power x2 541 | -7/Factory | Discovered new exit (range 13) 548 | -7/Factory | Entered Storage 566 | -7/Storage | Learned location of Armory (-3) 601 | -7/Storage | Core integrity fell below 50% 611 | -7/Storage | Core integrity fell below 20% 621 | -7/Storage | Destroyed by G-47 Trooper with Particle Gun Last Messages --------------- FAILED. SECURING TERMINAL." 00551_ O-24 Administrator sends out distress signal. 00554_ Connecting with Door Terminal... 00554_ Current location identified: Storage >>Open(Door) Sealed Heavy Doors opened. 00558_ ALERT: Hostiles spotted, dispatching reinforcements to Terminal S011. 00564_ A derelict emerges from hiding: "Psst-beep. Hey you, we've already cleared out from here, don't stick around. I stayed behind to warn any stragglers, and you certainly look like you're straggling." 00566_ 21-TYN(g): "We'll attack Armory later, meet at one of the rendevous points." World map updated: -3/Armory. 00566_ 21-TYN(g) slips back into hiding. 00606_ Slammed into G-47 Trooper. 00618_ Connecting with Door Terminal... Map ----- +----------------------------------------------------+ | | | | | ??????????????????????????????????? | | ??????????????????????????????????? | | ??????????????????????????????????? | | ??????????????????????????????????? | | ??????????????????????????????????? | | ??????????????????????????????????? | | ??????????????????????????????????? | | ??????????????????????????????????? | | ??????????????????????????????????? | | ??????????????????????????????????? | | ??????????????????????????????????? | | ??????????????????????????????????? | | ?????????????##########???????????? | | ?????????????# #???????????? | | ?????????????# """ #?""""??????? | | ?????????????# """ ### #??????? | | ?????????????# """ ##T #??????? | | ?????????????# ### #??????? | | ?????????????# """ #?# #??????? | | ?????????????# """ #?# #??????? | | ????????????## """ #?# #??????? | | ????????????# ###Y ##?????? | | ????????????#########+## g #?????? | | ??????????????????# @ #?????? | | ????????????????### % #?????? | | ????????????????#T#%g### #?????? | | ????????????????" +% ###########??? | | ????????????????### / """ """ #??? | | ??????????????????# # """ """ #??? | | ??????????????????# # """ """ #??? | | ??????????????????# # #??? | | ??????????????????# # #??? | | ??????????????????# # #??? | | ??????????????????# # #??? | | ?????##???????????# + #??? | | ##### ##??????????# #####+#####??# | | ############ #???# # !# | | # ## #???# # """ # | | # ## #???# # """ # | | # ## ##??# # """ # | | """ # # #### # # | | """ # / " # """ # | | T" """ # == # "T + """ # | | # == # #### # """ # | | ##+##### = ##+###??#+# # | | #?##+########?????? = # """ # | | ### #?????????? # """ # | | T #???????? # """ # | +----------------------------------------------------+ Best States ------------- Heat Dissipation 34 Energy Generation 5 Energy Capacity 100 Matter Stores 300 Matter Capacity 300 Sight Range 16 Terrain Scan Density 10 Evasion (%) 50 Item Schematics ----------------- None Robot Schematics ------------------ None Fabricated ------------ Nothing Alien Tech Used ----------------- None Achievements -------------- None Challenges ------------ None Game ------ Seed ShieldNovaCanceller Manual? 0 Play Time 00:12:21 Cumulative 20.0 hours Start 2024.04.13 @ 16:33:08 End 2024.04.13 @ 16:46:40 Sessions 1 Manual Loads 0 Difficulty Rogue Special Mode None Game No. 33 Rogue 33 Adventurer 0 Explorer 0 Win Type - Total 0 Types 0/0/0/0/0/0/0/0/0 Lore% 19 Gallery% 18 Achievement% 17 Wizard Run 0 Options --------- Layout 1 ASCII 1 Keyboard 0 Movement Vi Keybinds 0 Fullscreen 1 Font 16/SmallcapsGlow Map View 50x35 Zoom Use 0% Tactical HUD 1 Map Filters NONE Filters NONE Steam SD RUN: 7ba52999-32b6-4e64-b825-76f2241a60ce